bitfinex/quotes_SOLUSD_20251106
["timestamp","ask_amount","ask_price","bid_price","bid_amount"]
[1762441308592,0.72,157.76,157.73,6.87302816]
[1762441308821,0.72,157.79,157.74,6.87302816]
[1762441309107,10.50882769,157.8,157.71,26.93269077]
[1762441309255,10.50882769,157.8,157.74,6.87302816]
[1762441309458,9.78882769,157.78,157.66,1.85427629]
[1762441309759,9.78882769,157.78,157.7,20.592]
[1762441310059,9.78882769,157.78,157.72,6.87302816]
[1762441310060,0.72,157.77,157.72,6.87302816]
[1762441310266,9.78882769,157.76,157.72,6.87302816]
[1762441310662,9.78882769,157.74,157.7,6.87302816]
[1762441310991,0.72,157.75,157.71,6.87302816]
[1762441311198,0.72,157.75,157.66,21.812]
[1762441311199,20.592,157.78,157.72,6.87302816]
[1762441311508,6.87302816,157.75,157.66,1.22]
[1762441311786,9.78882769,157.73,157.68,6.87302816]
[1762441312168,0.72,157.72,157.69,6.87302816]
[1762441312488,10.49882769,157.75,157.67,0.14216157]
[1762441312792,10.49882769,157.75,157.7,6.87302816]
[1762441313165,0.71,157.74,157.71,6.87302816]
[1762441313371,0.71,157.74,157.69,6.87302816]
[1762441313688,9.78882769,157.73,157.66,21.812]
[1762441313891,0.71,157.72,157.66,8.09302816]
[1762441314091,9.78882769,157.74,157.7,6.87302816]
[1762441314383,0.71,157.73,157.69,6.87302816]
[1762441314566,0.71,157.73,157.68,6.87302816]
[1762441315183,0.71,157.73,157.66,1.22]
[1762441315184,9.78882769,157.71,157.66,1.22]
[1762441315681,0.71,157.7,157.67,6.87302816]
[1762441315865,10.49882769,157.71,157.67,6.87302816]
[1762441316057,0.71,157.7,157.67,6.87302816]
[1762441316261,9.78882769,157.69,157.62,0.2]
[1762441316460,9.78882769,157.69,157.63,6.87302816]
[1762441316660,0.71,157.68,157.63,6.87302816]
[1762441316870,0.71,157.68,157.62,20.792]
[1762441317166,0.71,157.68,157.63,6.87302816]
[1762441317167,6.34236062,157.67,157.63,6.87302816]
[1762441317366,0.71,157.68,157.64,6.87302816]
[1762441317566,9.78882769,157.71,157.67,6.87302816]
[1762441317764,0.71,157.73,157.7,6.87302816]
[1762441317978,0.71,157.73,157.64,0.14216157]
[1762441317979,9.78882769,157.72,157.66,6.87302816]
[1762441318286,9.78882769,157.7,157.64,6.87302816]
[1762441318463,16.66185585,157.7,157.63,6.87302816]
[1762441318664,9.78882769,157.68,157.63,6.87302816]
[1762441319065,7.05257857,157.67,157.63,6.87302816]
[1762441319366,0.71,157.69,157.62,0.2]
[1762441319584,9.78882769,157.68,157.62,0.2]
[1762441319783,9.78882769,157.68,157.64,6.87302816]
[1762441319978,0.71,157.67,157.63,6.87302816]
[1762441320189,0.71,157.67,157.62,0.2]
[1762441320395,9.78882769,157.63,157.57,0.1]
[1762441320566,0.71,157.62,157.57,0.1]
[1762441320884,0.71,157.62,157.57,6.97302816]
[1762441321190,21.302,157.65,157.6,6.87302816]
[1762441321490,9.78882769,157.61,157.57,0.1]
[1762441321901,0.71,157.63,157.58,6.87302816]
[1762441322203,9.78882769,157.58,157.57,0.1]
[1762441322501,0.71,157.58,157.57,0.1]
[1762441322686,7.68481499,157.66,157.57,6.97302816]
[1762441323004,0.71,157.7,157.65,6.87302816]
[1762441323210,7.05118254,157.7,157.67,6.87302816]
[1762441323508,0.71,157.7,157.65,6.87302816]
[1762441323806,0.71,157.74,157.69,6.87302816]
[1762441324006,0.71,157.74,157.71,6.87302816]
[1762441324302,7.58302816,157.74,157.66,20.592]
[1762441324465,8.55195146,157.77,157.73,6.87302816]
[1762441324466,0.71,157.77,157.73,6.87302816]
[1762441324668,7.58302816,157.76,157.7,6.87302816]
[1762441324865,9.78882769,157.74,157.64,0.63435676]
[1762441325204,6.34195839,157.68,157.63,6.87302816]
[1762441325368,9.78882769,157.67,157.62,6.87302816]
[1762441325696,10.49882769,157.67,157.62,6.87302816]
[1762441325875,0.71,157.66,157.63,6.87302816]
[1762441326076,0.71,157.66,157.62,6.87302816]
[1762441326281,9.78882769,157.68,157.65,6.87302816]
[1762441326491,10.49882769,157.68,157.65,6.87302816]
[1762441326669,21.302,157.71,157.67,6.87302816]
[1762441326873,9.78882769,157.7,157.67,6.87302816]
[1762441327065,9.78882769,157.73,157.68,6.87302816]
[1762441327266,10.49882769,157.73,157.7,6.87302816]
[1762441327488,0.71,157.73,157.71,6.87302816]
[1762441327694,3.34195145,157.72,157.55,0.63471913]
[1762441327988,3.34195145,157.72,157.48,1.99999999]
[1762441327989,9.78882769,157.64,157.53,0.2]
[1762441328194,6.87302816,157.63,157.51,20.792]
[1762441328492,10.42077915,157.62,157.56,6.87302816]
[1762441328706,7.01518973,157.61,157.55,6.87302816]
[1762441328879,9.78882769,157.59,157.54,6.87302816]
[1762441329079,16.13481068,157.58,157.48,8.14]
[1762441329276,10.49882769,157.58,157.53,6.87302816]
[1762441329506,0.71,157.58,157.55,6.87302816]
[1762441329710,0.71,157.58,157.54,6.87302816]
[1762441329883,21.302,157.61,157.56,6.87302816]
[1762441330085,0.71,157.61,157.57,6.97302816]
[1762441330407,0.71,157.65,157.6,6.87302816]
[1762441330588,9.78882769,157.64,157.61,6.87302816]
[1762441330792,9.78882769,157.64,157.6,6.87302816]
[1762441330991,0.71,157.64,157.6,6.87302816]
[1762441331203,0.71,157.63,157.6,6.87302816]
[1762441331405,16.66185585,157.62,157.57,0.1]
[1762441331588,16.66185585,157.62,157.43,18.73701906]
[1762441331589,37.25385585,157.58,157.47,15.87585264]
[1762441331799,6.87302816,157.55,157.5,6.87302816]
[1762441332121,0.71,157.59,157.54,6.87302816]
[1762441332409,0.71,157.59,157.47,6.65037696]
[1762441332615,22.19967016,157.66,157.58,6.87302816]
[1762441332902,10.49882769,157.65,157.62,6.87302816]
[1762441333109,17.37185585,157.65,157.6,6.87302816]
[1762441333320,9.78882769,157.63,157.53,0.77696129]
[1762441333486,0.71,157.64,157.56,6.87302816]
[1762441333686,6.87302816,157.61,157.55,6.87302816]
[1762441333886,0.71,157.63,157.59,6.87302816]
[1762441334290,0.71,157.63,157.6,6.87302816]
[1762441334494,7.58302816,157.63,157.58,6.87302816]
[1762441334692,6.87302816,157.62,157.53,0.14216157]
[1762441334902,0.71,157.62,157.57,6.87302816]
[1762441335104,0.71,157.61,157.58,6.87302816]
[1762441335435,0.63195146,157.73,157.6,6.87302816]
[1762441335715,6.87302816,157.66,157.61,6.87302816]
[1762441336017,0.71,157.69,157.64,6.87302816]
[1762441336186,7.58302816,157.69,157.59,0.14216157]
[1762441336381,16.66185585,157.68,157.62,6.87302816]
[1762441336604,17.37185585,157.68,157.62,6.87302816]
[1762441336792,0.63195146,157.71,157.62,6.87302816]
[1762441336793,0.71,157.71,157.67,6.87302816]
[1762441336991,0.71,157.71,157.58,0.77675986]
[1762441336992,6.87302816,157.7,157.58,0.93459829]
[1762441337185,9.78882769,157.7,157.6,0.14216157]
[1762441337386,0.71,157.71,157.68,6.87302816]
[1762441337713,0.71,157.75,157.63,7.64958673]
[1762441337900,6.87302816,157.73,157.63,0.634397]
[1762441338101,6.87302816,157.7,157.65,6.87302816]
[1762441338303,0.71,157.72,157.68,6.87302816]
[1762441338604,17.37185585,157.76,157.7,6.87302816]
[1762441338914,6.87302816,157.75,157.69,6.87302816]
[1762441339116,6.87302816,157.75,157.65,0.93431652]
[1762441339117,16.66185585,157.74,157.66,6.3427629]
[1762441339287,0.71,157.74,157.7,6.87302816]
[1762441339486,7.58302816,157.73,157.68,6.87302816]
[1762441339723,9.78882769,157.76,157.63,0.14216157]
[1762441339889,7.98,157.81,157.73,6.87302816]
[1762441340094,9.78882769,157.77,157.73,6.87302816]
[1762441340300,9.78882769,157.77,157.72,6.87302816]
[1762441340601,0.71,157.76,157.73,6.87302816]
[1762441340796,7.58302816,157.76,157.67,0.3]
[1762441340996,16.66185585,157.75,157.7,6.87302816]
[1762441341209,0.71,157.78,157.74,6.87302816]
[1762441341391,0.71,157.78,157.66,1.07643786]
[1762441341392,7.58302816,157.75,157.7,6.87302816]
[1762441341592,9.78882769,157.7,157.59,0.3]
[1762441341830,6.87302816,157.65,157.53,6.3479972]
[1762441341994,9.78882769,157.61,157.56,6.87302816]
[1762441342195,6.87302816,157.58,157.53,6.87302816]
[1762441342516,0.69,157.63,157.57,6.87302816]
[1762441342726,0.69,157.62,157.59,6.87302816]
[1762441343091,6.34517766,157.6,157.52,6.3484002]
[1762441343313,14.87302816,157.66,157.59,6.87302816]
[1762441343521,0.69,157.65,157.6,6.87302816]
[1762441343711,29.76446105,157.65,157.54,0.14216157]
[1762441343891,17.35185585,157.64,157.59,6.87302816]
[1762441344095,10.47882769,157.64,157.59,6.87302816]
[1762441344399,15.84841224,157.75,157.63,6.87302816]
[1762441344629,6.87302816,157.77,157.72,6.87302816]
[1762441344923,6.33633968,157.82,157.75,6.87302816]
[1762441345111,6.33633968,157.82,157.65,0.14216157]
[1762441345112,6.33713561,157.8,157.76,6.87302816]
[1762441345315,20.592,157.77,157.75,6.87302816]
[1762441345493,20.592,157.77,157.66,0.63427629]
[1762441345691,6.33713561,157.8,157.76,6.87302816]
[1762441345895,7.02713561,157.8,157.78,6.87302816]
[1762441346112,7.02713561,157.8,157.69,20.73416157]
[1762441346113,0.69,157.79,157.69,20.73416157]
[1762441346311,0.69,157.79,157.75,8.01003008]
[1762441346709,0.69,157.79,157.76,8.01003008]
[1762441347018,0.69,157.79,157.7,0.6341154]
[1762441347194,9.78882769,157.82,157.7,0.6341154]
[1762441347195,9.78882769,157.82,157.78,8.01003008]
[1762441347396,0.69,157.89,157.81,8.01003008]
[1762441347596,0.69,157.89,157.75,20.592]
[1762441347597,0.69,157.89,157.86,8.01003008]
[1762441347796,0.69,157.89,157.87,8.01003008]
[1762441348405,0.69,157.89,157.86,8.01003008]
[1762441348720,0.1,157.9,157.88,8.01003008]
[1762441348922,0.69,157.89,157.84,8.01003008]
[1762441349129,0.69,157.89,157.76,9.78882769]
[1762441349130,17.79885777,157.88,157.82,8.01003008]
[1762441349305,39.96776193,157.88,157.82,8.01003008]
[1762441349622,39.96776193,157.88,157.76,20.592]
[1762441349623,8.01003008,157.85,157.8,8.01003008]
[1762441349802,20.592,157.85,157.74,21.2259546]
[1762441350003,0.69,157.84,157.79,8.01003008]
[1762441350415,1.99999999,157.94,157.83,8.01003008]
[1762441350613,0.69,157.96,157.89,8.01003008]
[1762441351124,0.69,157.96,157.89,14.34355341]
[1762441351530,6.33192506,157.93,157.88,0.14216157]
[1762441351832,0.69,157.94,157.89,8.01003008]
[1762441352004,20.592,157.94,157.89,8.01003008]
[1762441352446,20.592,157.94,157.89,6.69262265]
[1762441352631,0.69,157.95,157.84,43.84186003]
[1762441352933,0.69,157.95,157.89,6.69262265]
[1762441353126,6.33195796,157.93,157.89,6.69262265]
[1762441353702,9.78882769,157.94,157.89,6.69262265]
[1762441353929,6.33233452,157.92,157.89,6.69262265]
[1762441354113,9.78882769,157.89,157.86,6.69262265]
[1762441354307,9.78882769,157.89,157.81,8.02]
[1762441354510,10.47882769,157.89,157.81,8.02]
[1762441354838,10.47882769,157.89,157.87,6.69262265]
[1762441355224,0.69,157.89,157.87,6.69262265]
[1762441355427,0.1,157.9,157.88,6.69262265]
[1762441355613,0.1,157.9,157.89,6.69262265]
[1762441356434,0.1,157.9,157.82,6.63633253]
[1762441356435,7.11326014,157.9,157.82,0.63363325]
[1762441356648,16.48145034,157.89,157.81,8.02]
[1762441356934,9.78882769,157.87,157.83,6.69262265]
[1762441357133,6.33673404,157.81,157.74,6.33954608]
[1762441357334,6.33673404,157.81,157.77,6.69262265]
[1762441357648,0.68,157.83,157.74,0.3]
[1762441357939,20.592,157.85,157.82,6.69262265]
[1762441358237,6.69262265,157.89,157.75,0.63391442]
[1762441358238,20.592,157.87,157.79,0.14216157]
[1762441358434,30.38082769,157.86,157.79,0.14216157]
[1762441358617,31.06082769,157.86,157.84,6.69262265]
[1762441358821,20.592,157.86,157.85,6.69262265]
[1762441359032,20.592,157.89,157.85,6.69262265]
[1762441359237,0.78,157.9,157.88,6.69262265]
[1762441359439,7.11315145,157.9,157.89,6.69262265]
[1762441359618,0.1,157.9,157.89,6.69262265]
[1762441360212,20.592,157.86,157.77,0.93383406]
[1762441360414,30.38082769,157.86,157.72,20.48917766]
[1762441360614,31.06082769,157.86,157.82,6.69262265]
[1762441360923,31.06082769,157.86,157.83,6.69262265]
[1762441361119,31.06082769,157.86,157.82,6.69262265]
[1762441361326,9.78882769,157.84,157.8,6.69262265]
[1762441361725,0.68,157.83,157.8,6.69262265]
[1762441361921,0.68,157.83,157.75,20.592]
[1762441362131,0.68,157.83,157.8,6.69262265]
[1762441362326,0.68,157.83,157.81,6.69262265]
[1762441362521,26.92673949,157.86,157.82,6.69262265]
[1762441362838,20.592,157.83,157.82,6.69262265]
[1762441363028,9.78882769,157.82,157.75,20.592]
[1762441363214,6.33673404,157.81,157.79,6.69262265]
[1762441363414,9.78882769,157.82,157.79,6.69262265]
[1762441363734,10.46882769,157.82,157.79,6.69262265]
[1762441363953,9.78882769,157.82,157.8,6.69262265]
[1762441364245,9.78882769,157.8,157.72,2.36]
[1762441364543,9.78882769,157.8,157.75,6.69262265]
[1762441364721,9.78882769,157.78,157.72,2.36]
[1762441364927,0.68,157.79,157.72,6.69262265]
[1762441364928,9.78882769,157.76,157.72,6.69262265]
[1762441365239,6.69262265,157.77,157.72,6.69262265]
[1762441365240,6.33834062,157.77,157.72,6.69262265]
[1762441365447,10.46882769,157.76,157.73,6.69262265]
[1762441365818,20.592,157.77,157.75,6.69262265]
[1762441366019,21.272,157.77,157.74,6.69262265]
[1762441366229,9.78882769,157.74,157.7,6.69262265]
[1762441366445,9.78882769,157.74,157.65,22.20107832]
[1762441366645,10.46882769,157.74,157.7,4.39771544]
[1762441366823,9.78882769,157.72,157.68,4.39771544]
[1762441367168,9.78882769,157.72,157.64,36.012]
[1762441367169,9.78882769,157.72,157.64,20.592]
[1762441367329,9.78882769,157.72,157.48,83.55992914]
[1762441367330,4.39771544,157.67,157.57,0.63463857]
[1762441367650,20.592,157.63,157.58,4.39771544]
[1762441367861,20.592,157.63,157.53,8.0]
[1762441367862,20.592,157.59,157.54,4.39771544]
[1762441368069,20.592,157.59,157.57,4.39771544]
[1762441368227,0.63195146,157.66,157.58,8.79543088]
[1762441368427,0.68,157.67,157.65,4.39771544]
[1762441368640,0.68,157.72,157.66,4.39771544]
[1762441368842,9.78882769,157.71,157.64,0.14216157]
[1762441369053,34.77854313,157.71,157.62,8.02]
[1762441369251,31.06082769,157.71,157.67,4.39771544]
[1762441369461,0.68,157.7,157.66,4.39771544]
[1762441369943,5.07771544,157.7,157.62,8.02]
[1762441370139,0.68,157.7,157.66,4.39771544]
[1762441370542,0.68,157.7,157.62,8.02]
[1762441370742,0.68,157.7,157.66,4.39771544]
[1762441371256,0.68,157.7,157.67,4.39771544]
[1762441371556,9.78882769,157.69,157.65,4.39771544]
[1762441371747,9.78882769,157.71,157.67,4.39771544]
[1762441371949,0.68,157.68,157.66,4.39771544]
[1762441372157,0.68,157.68,157.67,4.39771544]
[1762441372471,0.68,157.68,157.62,35.59080791]
[1762441372681,14.18654313,157.66,157.57,0.63463857]
[1762441372832,20.592,157.63,157.57,4.39771544]
[1762441373038,20.592,157.63,157.51,6.34880325]
[1762441373039,20.592,157.63,157.59,4.39771544]
[1762441373341,9.78882769,157.6,157.57,4.39771544]
[1762441373543,9.78882769,157.6,157.58,4.39771544]
[1762441373751,0.67,157.6,157.56,4.39771544]
[1762441373945,0.67,157.6,157.58,4.39771544]
[1762441374341,0.67,157.6,157.57,6.72034485]
[1762441374746,0.67,157.6,157.56,6.72034485]
[1762441374747,9.78882769,157.59,157.56,6.72034485]
[1762441375142,10.45882769,157.59,157.56,6.72034485]
[1762441375338,9.78882769,157.62,157.58,6.72034485]
[1762441375541,10.45882769,157.62,157.58,6.72034485]
[1762441375874,0.67,157.61,157.58,6.72034485]
[1762441376066,0.67,157.61,157.53,6.49015877]
[1762441376249,0.67,157.61,157.58,6.72034485]
[1762441376457,0.67,157.64,157.6,6.72034485]
[1762441376764,9.78882769,157.66,157.63,6.72034485]
[1762441376979,9.78882769,157.68,157.65,6.72034485]
[1762441377181,0.67,157.73,157.67,6.72034485]
[1762441377340,9.78882769,157.71,157.67,6.72034485]
[1762441377541,34.32269483,157.72,157.67,6.72034485]
[1762441377839,0.67,157.71,157.69,6.72034485]
[1762441378087,0.67,157.75,157.7,6.72034485]
[1762441378369,0.67,157.75,157.64,0.93435676]
[1762441378370,0.67,157.75,157.72,6.72034485]
[1762441378550,9.78882769,157.74,157.72,6.72034485]
[1762441378752,9.78882769,157.74,157.71,6.72034485]
[1762441378945,0.67,157.73,157.7,6.72034485]
[1762441379145,9.78882769,157.72,157.7,6.72034485]
[1762441379541,0.67,157.71,157.6,0.63451776]
[1762441379745,7.39034485,157.71,157.66,6.72034485]
[1762441379945,16.50917254,157.68,157.59,6.3455803]
[1762441380170,20.592,157.68,157.66,6.72034485]
[1762441380376,0.67,157.7,157.67,6.72034485]
[1762441380544,0.67,157.7,157.68,6.72034485]
[1762441380742,0.67,157.73,157.69,6.72034485]
[1762441380941,0.67,157.75,157.71,6.72034485]
[1762441381179,22.17530498,157.84,157.74,6.72034485]
[1762441381369,0.67,157.81,157.8,6.72034485]
[1762441381981,0.2,157.86,157.8,7.02034485]
[1762441382181,0.2,157.86,157.81,0.14216157]
[1762441382358,0.2,157.86,157.85,6.72034485]
[1762441382562,0.87,157.86,157.8,0.63371356]
[1762441382771,0.87,157.86,157.7,50.0]
[1762441382772,30.38082769,157.82,157.73,0.6339948]
[1762441383069,16.50917254,157.82,157.77,6.72034485]
[1762441383260,9.78882769,157.78,157.7,8.02]
[1762441383461,16.12695197,157.78,157.74,6.72034485]
[1762441383664,16.12695197,157.78,157.69,20.592]
[1762441383665,9.78882769,157.74,157.69,6.72034485]
[1762441383867,16.50917254,157.74,157.69,6.72034485]
[1762441384084,9.78882769,157.7,157.63,8.02]
[1762441384288,6.72034485,157.69,157.63,8.02]
[1762441384478,9.78882769,157.66,157.63,8.02]
[1762441384684,9.78882769,157.66,157.62,6.72034485]
[1762441384912,10.45882769,157.66,157.62,6.72034485]
[1762441385182,10.45882769,157.66,157.53,6.98277752]
[1762441385183,37.10117254,157.63,157.52,6.34836439]
[1762441385387,6.72034485,157.58,157.49,0.63496094]
[1762441385566,20.592,157.57,157.48,6.3500127]
[1762441385763,20.592,157.57,157.54,6.72034485]
[1762441385960,0.67,157.57,157.55,6.72034485]
[1762441386566,9.78882769,157.56,157.52,6.72034485]
[1762441386766,9.78882769,157.52,157.41,7.18802806]
[1762441386968,0.63195146,157.53,157.48,6.72034485]
[1762441387174,0.63195146,157.53,157.42,0.3]
[1762441387175,0.67,157.55,157.52,6.72034485]
[1762441387479,0.67,157.55,157.45,20.592]
[1762441387480,7.01722992,157.55,157.45,20.592]
[1762441387686,22.58314029,157.61,157.54,6.72034485]
[1762441387868,22.58314029,157.61,157.46,0.63508192]
[1762441387869,9.78882769,157.6,157.47,8.04]
[1762441388073,9.78882769,157.58,157.54,6.72034485]
[1762441388281,16.50917254,157.58,157.53,6.72034485]
[1762441388587,9.78882769,157.56,157.52,6.72034485]
[1762441388771,9.78882769,157.56,157.47,8.04]
[1762441388971,9.78882769,157.54,157.49,6.72034485]
[1762441389171,9.78882769,157.54,157.5,6.72034485]
[1762441389471,9.78882769,157.5,157.46,6.72034485]
[1762441389878,9.78882769,157.51,157.49,6.72034485]
[1762441390091,8.04,157.56,157.5,6.72034485]
[1762441390092,0.67,157.52,157.5,6.72034485]
[1762441390266,10.45882769,157.55,157.43,0.77736451]
[1762441390472,20.592,157.58,157.53,6.72034485]
[1762441390668,10.45882769,157.57,157.53,6.72034485]
[1762441390881,10.45882769,157.57,157.45,0.77728383]
[1762441391082,0.67,157.59,157.56,6.72034485]
[1762441391387,0.67,157.67,157.59,6.3455803]
[1762441391596,9.78882769,157.66,157.57,0.63463857]
[1762441391764,6.72034485,157.64,157.53,0.63479972]
[1762441391967,9.78882769,157.61,157.52,0.14216157]
[1762441392277,16.50917254,157.61,157.51,5.42]
[1762441392486,0.67,157.6,157.56,6.72034485]
[1762441392667,0.67,157.6,157.57,6.72034485]
[1762441392971,0.67,157.6,157.51,5.42]
[1762441393286,0.67,157.66,157.59,6.72034485]
[1762441393473,9.78882769,157.65,157.59,6.34522441]
[1762441393670,9.78882769,157.65,157.62,6.72034485]
[1762441393899,10.45882769,157.65,157.59,6.34538519]
[1762441394186,9.78882769,157.65,157.62,6.72034485]
[1762441394390,9.78882769,157.59,157.51,5.42]
[1762441394594,16.50917254,157.57,157.51,6.72034485]
[1762441394897,0.67,157.58,157.55,6.72034485]
[1762441395064,9.78882769,157.57,157.46,0.63508192]
[1762441395265,9.78882769,157.57,157.52,6.72034485]
[1762441395266,0.67,157.56,157.52,6.72034485]
[1762441395592,20.592,157.6,157.54,6.72034485]
[1762441395894,9.78882769,157.57,157.47,6.35041595]
[1762441396082,21.262,157.59,157.52,6.72034485]
[1762441396301,10.45882769,157.58,157.53,4.40698229]
[1762441396505,10.45882769,157.58,157.55,4.40698229]
[1762441396710,0.67,157.65,157.57,4.40698229]
[1762441396888,0.67,157.7,157.64,4.40698229]
[1762441397212,5.07698229,157.76,157.69,4.40698229]
[1762441397388,5.07698229,157.76,157.72,4.40698229]
[1762441397389,0.67,157.76,157.72,4.40698229]
[1762441397710,0.67,157.75,157.68,4.40698229]
[1762441397885,0.67,157.75,157.68,5.04117812]
[1762441398085,4.40698229,157.81,157.74,4.40698229]
[1762441398319,0.67,157.79,157.76,6.7039121]
[1762441398487,0.67,157.79,157.77,6.7039121]
[1762441398810,0.67,157.79,157.71,12.3433873]
[1762441399192,0.2,157.82,157.78,6.7039121]
[1762441399389,7.20633489,157.82,157.79,6.7039121]
[1762441399590,7.20638424,157.82,157.77,6.7039121]
[1762441399796,6.7039121,157.8,157.74,6.7039121]
[1762441399991,9.78882769,157.79,157.74,6.7039121]
[1762441400202,10.45882769,157.79,157.74,6.7039121]
[1762441400409,0.67,157.78,157.74,6.7039121]
[1762441400604,0.67,157.78,157.75,6.7039121]
[1762441401111,0.87,157.82,157.77,6.7039121]
[1762441401312,0.2,157.82,157.81,6.7039121]
[1762441401804,0.2,157.82,157.81,13.04064614]
[1762441402013,0.2,157.82,157.81,6.7039121]
[1762441402194,0.2,157.82,157.73,8.36]
[1762441402195,9.78882769,157.81,157.73,8.06]
[1762441402387,16.49273979,157.81,157.75,6.7039121]
[1762441402594,0.7,157.8,157.76,6.7039121]
[1762441402896,16.49273979,157.79,157.65,0.3]
[1762441403113,20.592,157.79,157.75,6.7039121]
[1762441403292,21.292,157.79,157.76,6.7039121]
[1762441403488,0.7,157.79,157.77,6.7039121]
[1762441403706,0.7,157.78,157.69,0.63415562]
[1762441404036,0.7,157.78,157.74,6.7039121]
[1762441404803,0.7,157.78,157.75,6.7039121]
[1762441405199,0.7,157.78,157.7,0.6341154]
[1762441405526,0.7,157.78,157.75,6.7039121]
[1762441405733,0.7,157.78,157.76,6.7039121]
[1762441405930,0.7,157.78,157.71,6.34075201]
[1762441405931,0.7,157.78,157.77,6.7039121]
[1762441406312,0.2,157.82,157.77,6.7039121]
[1762441406625,0.2,157.82,157.78,0.63379389]
[1762441406838,0.2,157.82,157.81,6.7039121]
[1762441407129,0.2,157.82,157.76,21.3680358]
[1762441407321,7.23633253,157.82,157.76,0.7760358]
[1762441407535,16.12579133,157.81,157.78,6.7039121]
[1762441407716,6.7039121,157.79,157.73,6.7039121]
[1762441407910,9.78882769,157.78,157.67,8.06]
[1762441408132,9.78882769,157.76,157.71,6.7039121]
[1762441408337,21.292,157.77,157.75,6.7039121]
[1762441408627,10.48882769,157.76,157.74,6.7039121]
[1762441408833,10.48882769,157.76,157.67,8.36]
[1762441408834,9.78882769,157.75,157.67,8.06]
[1762441409004,9.78882769,157.75,157.73,6.7039121]
[1762441409207,10.48882769,157.75,157.68,0.63419583]
[1762441409438,10.48882769,157.75,157.74,6.7039121]
[1762441409439,0.7,157.75,157.74,6.7039121]
[1762441409735,9.78882769,157.78,157.74,6.7039121]
[1762441409914,9.78882769,157.78,157.75,6.7039121]
[1762441410104,0.7,157.77,157.75,6.7039121]
[1762441410301,0.7,157.77,157.74,6.7039121]
[1762441410502,0.7,157.77,157.76,6.7039121]
[1762441410503,21.292,157.77,157.76,6.7039121]
[1762441410701,9.78882769,157.76,157.74,6.7039121]
[1762441411130,9.78882769,157.74,157.72,6.7039121]
[1762441411404,0.7,157.75,157.68,42.78883958]
[1762441411608,21.292,157.76,157.74,6.7039121]
[1762441411903,21.292,157.76,157.73,6.7039121]
[1762441412108,10.48882769,157.75,157.72,6.7039121]
[1762441412310,10.48882769,157.75,157.73,8.01162353]
[1762441412505,0.7,157.74,157.7,8.01162353]
[1762441412720,0.7,157.74,157.67,14.40228899]
[1762441412932,0.7,157.74,157.72,8.01162353]
[1762441413137,0.7,157.74,157.71,8.01162353]
[1762441413316,0.7,157.74,157.73,8.01162353]
[1762441413516,9.78882769,157.75,157.67,14.40231272]
[1762441413721,0.7,157.74,157.71,8.01162353]
[1762441413935,0.7,157.74,157.7,8.01162353]
[1762441414437,0.7,157.74,157.71,8.01162353]
[1762441414641,0.7,157.74,157.65,20.592]
[1762441414642,8.01162353,157.72,157.65,20.592]
[1762441414817,38.39245122,157.7,157.63,8.01162353]
[1762441415013,20.592,157.7,157.64,8.01162353]
[1762441415224,20.592,157.7,157.61,20.592]
[1762441415225,104.7,157.69,157.61,20.592]
[1762441415442,20.592,157.72,157.68,8.01162353]
[1762441415734,20.592,157.72,157.67,6.34233702]
[1762441415935,6.33997372,157.73,157.71,8.01162353]
[1762441416137,10.48882769,157.72,157.71,8.01162353]
[1762441416355,10.48882769,157.72,157.7,8.01162353]
[1762441416514,10.48882769,157.72,157.64,22.83677104]
[1762441416717,10.48882769,157.72,157.64,6.97785199]
[1762441417022,105.39,157.75,157.71,8.01162353]
[1762441417237,0.69,157.75,157.74,8.01162353]
[1762441417438,8.26,157.82,157.74,8.01162353]
[1762441417439,0.89,157.82,157.74,8.01162353]
[1762441417653,0.69,157.81,157.75,6.97305863]
[1762441417939,0.2,157.82,157.8,8.01162353]
[1762441418140,0.2,157.82,157.81,8.01162353]
[1762441418445,0.89,157.82,157.81,8.01162353]
[1762441418642,0.2,157.82,157.81,8.01162353]
[1762441420033,0.2,157.82,157.81,14.79051914]
[1762441420537,0.2,157.86,157.85,0.14216157]
[1762441420712,0.2,157.86,157.84,21.22555296]
[1762441420913,0.2,157.86,157.85,8.01162353]